bitfinex-derivatives/quotes_SOLF0:USTF0_20250514
["timestamp","ask_amount","ask_price","bid_price","bid_amount"]
[1747225404057,5.4997,181.82,181.79,5.5005]
[1747225404258,364.0,181.83,181.72,6.11971966]
[1747225404559,1.8689,181.85,181.73,1.8291]
[1747225404758,7.3678,181.85,181.73,1.8291]
[1747225404961,7.3678,181.85,181.74,1.7336]
[1747225405359,7.3678,181.85,181.81,5.4997]
[1747225405962,5.499,181.84,181.81,5.4997]
[1747225406352,1.8689,181.85,181.81,5.4997]
[1747225406552,7.3677,181.85,181.82,5.4996]
[1747225406758,1.8689,181.85,181.75,6.11971966]
[1747225406956,3.6829,181.86,181.75,6.11971966]
[1747225407159,5.4983,181.87,181.75,6.11971966]
[1747225407458,1.7929,181.9,181.75,6.11971966]
[1747225407661,7.2901,181.9,181.78,6.11971966]
[1747225407858,1.7929,181.9,181.78,6.11971966]
[1747225408960,7.2902,181.9,181.87,5.4981]
[1747225409259,7.2902,181.9,181.78,6.11971966]
[1747225409560,7.2902,181.9,181.86,5.4982]
[1747225409963,5.4975,181.89,181.78,6.11971966]
[1747225410157,5.4975,181.89,181.85,5.4984]
[1747225410561,5.4979,181.88,181.78,6.11971966]
[1747225410758,1.7929,181.9,181.78,6.11971966]
[1747225411062,5.4976,181.89,181.78,6.11971966]
[1747225411261,5.4976,181.89,181.85,5.4985]
[1747225413262,5.4979,181.88,181.85,5.4985]
[1747225414064,5.4976,181.89,181.85,5.4985]
[1747225414458,1.7929,181.9,181.85,5.4985]
[1747225415164,5.498,181.88,181.85,5.4985]
[1747225415865,5.4982,181.87,181.84,5.4989]
[1747225416066,5.4982,181.87,181.78,6.11971966]
[1747225416572,5.4982,181.87,181.77,1.772]
[1747225416573,5.4984,181.86,181.77,1.772]
[1747225417066,1.7929,181.9,181.77,1.772]
[1747225417461,5.4984,181.87,181.77,1.772]
[1747225417662,1.7929,181.9,181.78,6.11971966]
[1747225418173,5.4976,181.89,181.78,6.11971966]
[1747225418666,5.4976,181.89,181.86,5.4984]
[1747225418858,1.7929,181.9,181.78,6.11971966]
[1747225420070,7.2902,181.9,181.86,5.4981]
[1747225421371,5.4976,181.89,181.86,5.4981]
[1747225421672,1.7929,181.9,181.78,6.11971966]
[1747225422066,5.4983,181.87,181.84,5.4989]
[1747225422564,1.7929,181.9,181.86,5.4984]
[1747225422765,1.7929,181.9,181.78,6.11971966]
[1747225423967,5.4978,181.89,181.85,5.4986]
[1747225424373,1.7929,181.9,181.85,5.4986]
[1747225424674,1.7929,181.9,181.86,5.4984]
[1747225425171,1.7929,181.9,181.87,5.4979]
[1747225425971,7.2903,181.9,181.87,5.4979]
[1747225426666,5.4976,181.89,181.87,5.4979]
[1747225426871,1.7929,181.9,181.87,5.4979]
[1747225427071,364.0,181.91,181.89,5.4975]
[1747225427472,369.4971,181.91,181.79,11.0007]
[1747225427669,5.4971,181.91,181.88,5.4978]
[1747225429473,6.11971966,181.92,181.79,11.0007]
[1747225429875,5.4979,181.88,181.85,5.4985]
[1747225430075,6.11971966,181.92,181.77,7.89171966]
[1747225430574,5.4984,181.86,181.83,5.4991]
[1747225431076,5.4984,181.86,181.84,5.499]
[1747225431274,3.536,181.94,181.74,1.7336]
[1747225431580,3.536,181.94,181.65,114.16472062]
[1747225431581,6.11971966,181.82,181.69,1.8577]
[1747225431972,5.5011,181.78,181.69,1.8577]
[1747225432177,3.7882,181.81,181.73,5.5021]
[1747225432375,5.501,181.78,181.73,5.5021]
[1747225432576,3.7882,181.81,181.75,5.5017]
[1747225433276,3.7882,181.81,181.67,6.11971966]
[1747225433667,5.5006,181.79,181.67,6.11971966]
[1747225434374,5.5003,181.8,181.75,5.5016]
[1747225435483,5.5007,181.79,181.75,5.5016]
[1747225437085,5.5002,181.8,181.76,5.5013]
[1747225438485,3.7882,181.81,181.67,6.11971966]
[1747225439082,6.11971966,181.85,181.7,6.11971966]
[1747225439283,9.73201966,181.86,181.7,6.11971966]
[1747225439689,5.4997,181.82,181.78,5.5006]
[1747225440090,9.73201966,181.86,181.7,6.11971966]
[1747225441490,5.4995,181.83,181.79,5.5003]
[1747225441788,9.73201966,181.86,181.7,6.11971966]
[1747225442288,5.5003,181.8,181.7,6.11971966]
[1747225442681,5.5003,181.8,181.76,5.5013]
[1747225442990,5.5003,181.8,181.7,6.11971966]
[1747225443587,5.5,181.81,181.77,5.5009]
[1747225444794,5.4997,181.82,181.78,5.5008]
[1747225446392,5.5,181.81,181.78,5.5008]
[1747225446794,9.73201966,181.86,181.79,5.5005]
[1747225447193,9.73201966,181.86,181.7,6.11971966]
[1747225447493,5.5007,181.79,181.7,6.11971966]
[1747225447996,6.11971966,181.83,181.77,5.5011]
[1747225448898,6.11971966,181.83,181.76,5.5013]
[1747225449595,6.11971966,181.83,181.75,5.5017]
[1747225449794,6.11971966,181.83,181.67,7.07724989]
[1747225449990,6.11971966,181.83,181.67,6.11971966]
[1747225450191,5.5006,181.79,181.77,5.5011]
[1747225450596,5.5006,181.79,181.67,6.11971966]
[1747225451095,5.5003,181.8,181.67,6.11971966]
[1747225451599,5.5006,181.79,181.67,6.11971966]
[1747225452294,5.5006,181.79,181.76,5.5012]
[1747225454094,6.11971966,181.83,181.67,6.11971966]
[1747225455396,5.4998,181.82,181.69,11.0069]
[1747225455599,6.11971966,181.83,181.69,11.0069]
[1747225456094,5.5002,181.81,181.77,5.5009]
[1747225456598,5.5002,181.8,181.77,5.5009]
[1747225456993,6.11971966,181.83,181.69,11.0069]
[1747225457193,5.5006,181.79,181.69,11.0069]
[1747225457394,5.5006,181.79,181.76,5.5014]
[1747225458700,5.5006,181.79,181.77,5.5011]
[1747225459499,6.11971966,181.83,181.69,11.0069]
[1747225459695,6.11971966,181.8,181.66,112.81015963]
[1747225459993,5.5024,181.73,181.7,5.5031]
[1747225460192,6.11971966,181.74,181.64,34.07474462]
[1747225460598,6.11971966,181.74,181.66,5.5043]
[1747225460800,6.11971966,181.74,181.64,34.07474462]
[1747225461300,6.11971966,181.71,181.59,5.3871]
[1747225462000,5.5037,181.69,181.66,5.5044]
[1747225462201,3.6141,181.7,181.59,5.3871]
[1747225463103,5.5036,181.69,181.59,5.3871]
[1747225463299,3.6141,181.7,181.59,5.3871]
[1747225463500,5.5039,181.68,181.64,5.5048]
[1747225463797,5.5039,181.68,181.59,5.3871]
[1747225464101,5.5039,181.68,181.59,1.7444]
[1747225464498,5.5042,181.67,181.59,1.7444]
[1747225464700,5.5042,181.67,181.64,5.505]
[1747225465803,5.5042,181.67,181.56,6.11971966]
[1747225465804,5.3835,181.7,181.56,6.11971966]
[1747225466103,6.11971966,181.68,181.55,1.798]
[1747225466898,5.5048,181.65,181.62,5.5056]
[1747225467900,5.5046,181.66,181.62,5.5056]
[1747225468300,6.11971966,181.68,181.62,5.5056]
[1747225468504,6.11971966,181.68,181.55,1.798]
[1747225469102,5.5048,181.65,181.55,1.798]
[1747225469803,5.5048,181.65,181.61,5.5058]
[1747225470303,5.5045,181.66,181.55,1.798]
[1747225471005,5.5048,181.65,181.61,5.5057]
[1747225471201,5.5048,181.65,181.55,1.798]
[1747225471700,6.11971966,181.68,181.55,1.798]
[1747225471897,5.3835,181.7,181.56,6.11971966]
[1747225472205,5.5032,181.71,181.59,6.11971966]
[1747225472399,370.11971966,181.74,181.59,6.11971966]
[1747225472600,370.11971966,181.74,181.66,5.5043]
[1747225472809,5.5034,181.7,181.66,5.5043]
[1747225473408,5.5034,181.7,181.67,5.5042]
[1747225473803,5.5034,181.7,181.59,6.11971966]
[1747225474111,6.11971966,181.71,181.57,11.0143]
[1747225474301,5.4636,181.7,181.57,11.0143]
[1747225474502,5.5044,181.67,181.57,11.0143]
[1747225475408,5.504,181.68,181.64,5.5049]
[1747225475707,5.504,181.68,181.57,11.0143]
[1747225475908,5.4636,181.7,181.57,11.0143]
[1747225476910,5.5043,181.67,181.57,11.0143]
[1747225477609,5.5043,181.67,181.64,5.505]
[1747225477809,5.5039,181.68,181.57,11.0143]
[1747225478215,5.5039,181.68,181.64,5.5049]
[1747225478918,5.4636,181.7,181.57,11.0143]
[1747225479116,5.4636,181.7,181.58,11.0137]
[1747225479308,5.4636,181.7,181.59,1.7406]
[1747225479617,3.5967,181.7,181.68,5.5037]
[1747225479819,3.5967,181.7,181.6,1.731]
[1747225480518,3.5967,181.7,181.68,5.5036]
[1747225482019,9.1,181.7,181.67,5.5041]
[1747225482218,3.5967,181.7,181.59,1.7406]
[1747225482818,5.4384,181.7,181.56,6.11971966]
[1747225483419,5.5047,181.66,181.56,6.11971966]
[1747225483718,5.4384,181.7,181.56,6.11971966]
[1747225483919,6.11971966,181.68,181.55,3.5645]
[1747225484418,5.5052,181.64,181.61,5.5057]
[1747225484623,6.11971966,181.68,181.55,3.5645]
[1747225485021,5.505,181.65,181.61,5.5058]
[1747225486113,5.5046,181.66,181.62,5.5056]
[1747225486318,6.11971966,181.68,181.62,5.5056]
[1747225486723,5.5048,181.65,181.62,5.5056]
[1747225486922,5.5048,181.65,181.63,5.5054]
[1747225487323,5.5048,181.65,181.55,3.5645]
[1747225487823,5.5051,181.64,181.55,3.5645]
[1747225488326,5.5051,181.64,181.61,5.5058]
[1747225488520,5.5049,181.65,181.55,3.5645]
[1747225488922,6.11971966,181.68,181.55,3.5645]
[1747225489124,5.5047,181.66,181.55,3.5645]
[1747225489423,6.11971966,181.68,181.62,5.5055]
[1747225489922,5.5049,181.65,181.62,5.5055]
[1747225490922,5.5051,181.64,181.62,5.5055]
[1747225491523,5.5051,181.64,181.61,5.5059]
[1747225491721,6.11971966,181.68,181.61,5.5059]
[1747225492222,6.11971966,181.68,181.6,5.5062]
[1747225492423,6.11971966,181.68,181.55,3.5645]
[1747225493022,5.5053,181.64,181.61,5.5058]
[1747225493824,5.5053,181.64,181.55,3.5645]
[1747225494418,5.5049,181.65,181.62,5.5056]
[1747225494623,6.11971966,181.68,181.55,3.5645]
[1747225495020,6.11971966,181.68,181.65,5.5047]
[1747225495218,5.4384,181.7,181.56,6.11971966]
[1747225495416,6.11971966,181.71,181.68,5.5036]
[1747225495623,6.11971966,181.71,181.58,11.0138]
[1747225496126,6.11971966,181.71,181.59,11.0131]
[1747225497623,11.62271966,181.71,181.68,5.5037]
[1747225498028,6.11971966,181.71,181.59,11.0131]
[1747225498229,6.11971966,181.71,181.66,5.5043]
[1747225498432,6.11971966,181.71,181.59,11.0131]
[1747225499427,5.5035,181.7,181.59,11.0131]
[1747225500631,5.5035,181.7,181.67,5.5041]
[1747225500825,11.62271966,181.71,181.59,11.0131]
[1747225501026,6.11971966,181.74,181.59,17.13281966]
[1747225501327,6.11971966,181.74,181.59,6.11971966]
[1747225501924,6.11971966,181.74,181.55,3.5645]
[1747225501925,6.11971966,181.77,181.62,6.11971966]
[1747225502124,6.11971966,181.77,181.63,5.5771]
[1747225502323,11.62101966,181.77,181.73,5.5022]
[1747225502731,6.11971966,181.77,181.73,5.5022]
[1747225503028,6.11971966,181.74,181.63,5.5771]
[1747225503732,6.11971966,181.74,181.59,6.11971966]
[1747225504226,6.11971966,181.74,181.67,5.5041]
[1747225504431,6.11971966,181.71,181.56,11.70211966]
[1747225504634,5.504,181.68,181.64,5.5048]
[1747225504932,5.504,181.68,181.57,1.8432]
[1747225505431,5.5037,181.69,181.65,5.5046]
[1747225505632,5.5037,181.69,181.57,1.8432]
[1747225505935,5.5037,181.69,181.65,5.5046]
[1747225508433,5.5037,181.69,181.66,5.5044]
[1747225508837,5.504,181.68,181.65,5.5047]
[1747225509834,6.11971966,181.68,181.57,1.8432]
[1747225511430,5.5045,181.66,181.57,1.8432]
[1747225511933,5.5051,181.65,181.62,5.5057]
[1747225512233,5.5051,181.65,181.56,3.7392]
[1747225512434,5.5051,181.65,181.61,5.5058]
[1747225513329,5.5051,181.64,181.61,5.5058]
[1747225513534,6.11971966,181.68,181.59,5.5064]
[1747225513834,5.5056,181.63,181.53,17.13641966]
[1747225514036,6.11971966,181.68,181.53,6.11971966]
[1747225514435,5.5051,181.64,181.53,6.11971966]
[1747225515037,5.5051,181.64,181.6,5.5061]
[1747225515337,5.5054,181.63,181.53,6.11971966]
[1747225515638,5.5054,181.63,181.6,5.5062]
[1747225516638,5.5054,181.63,181.59,5.5065]
[1747225516936,5.5054,181.63,181.53,6.11971966]
[1747225517938,5.5054,181.63,181.59,5.5063]
[1747225518138,5.5054,181.63,181.53,6.11971966]
[1747225518339,5.5052,181.64,181.53,6.11971966]
[1747225518637,5.5052,181.64,181.6,5.5061]
[1747225519535,5.5052,181.64,181.61,5.5059]
[1747225519737,6.11971966,181.68,181.53,6.11971966]
[1747225520538,5.5048,181.65,181.53,6.11971966]
[1747225520742,6.11971966,181.68,181.53,6.11971966]
[1747225521240,5.5051,181.64,181.6,5.5061]
[1747225521637,5.5051,181.64,181.53,6.11971966]
[1747225522335,5.5054,181.63,181.53,6.11971966]
[1747225522534,6.11971966,181.68,181.53,6.11971966]
[1747225522741,5.5058,181.62,181.59,5.5064]
[1747225523240,5.5058,181.62,181.58,5.5068]
[1747225523440,5.5061,181.61,181.58,5.5068]
[1747225523738,6.11971966,181.62,181.5,1.8979]
[1747225524334,5.5073,181.57,181.49,100.53363466]
[1747225524740,6.11971966,181.59,181.51,5.5088]
[1747225524936,5.5084,181.53,181.44,1.846]
[1747225525438,5.5088,181.52,181.44,1.846]
[1747225525640,6.11971966,181.53,181.44,1.846]
[1747225525941,6.11971966,181.53,181.49,5.5095]
[1747225526136,11.62811966,181.53,181.44,1.846]
[1747225526340,6.11971966,181.53,181.42,1.7567]
[1747225527338,6.11971966,181.53,181.42,63.7567]
[1747225528342,6.11971966,181.53,181.5,5.5093]
[1747225528544,6.11971966,181.53,181.42,63.7567]
[1747225528841,6.11971966,181.53,181.51,5.5089]
[1747225529136,6.11971966,181.53,181.42,63.7567]
[1747225530138,6.11971966,181.53,181.5,5.5091]
[1747225530545,6.11971966,181.53,181.42,63.7567]
[1747225530841,6.11971966,181.54,181.42,63.7567]
[1747225531041,6.11971966,181.57,181.42,74.7797]
[1747225531242,6.11971966,181.57,181.54,5.5079]
[1747225532147,11.62691966,181.57,181.54,5.5079]
[1747225532339,6.11971966,181.57,181.54,5.5079]
[1747225533237,6.11971966,181.57,181.55,5.5075]
[1747225533441,6.11971966,181.57,181.44,6.11971966]
[1747225533744,370.11971966,181.6,181.57,5.5071]
[1747225533940,370.11971966,181.6,181.43,1.7807]
[1747225533941,370.11971966,181.6,181.47,6.11971966]
[1747225534144,364.0,181.6,181.47,6.11971966]
[1747225534445,369.5063,181.6,181.56,5.5074]
[1747225535147,5.5066,181.59,181.56,5.5074]
[1747225535345,370.11971966,181.6,181.48,62.0]
[1747225535945,370.11971966,181.6,181.46,12.7592]
[1747225536249,5.5071,181.58,181.46,12.7592]
[1747225536445,370.11971966,181.6,181.46,12.7592]
[1747225537349,364.0,181.6,181.47,6.11971966]
[1747225537547,369.5063,181.6,181.56,5.5073]
[1747225537946,364.0,181.6,181.47,6.11971966]
[1747225538145,5.5068,181.59,181.55,5.5077]
[1747225539445,6.11971966,181.59,181.48,62.0]
[1747225539747,364.0,181.6,181.46,1.7385]
[1747225539946,11.62641966,181.59,181.55,5.5077]
[1747225540147,364.0,181.6,181.47,6.11971966]
[1747225541149,5.5067,181.59,181.55,5.5078]
[1747225541350,364.0,181.6,181.47,6.11971966]
[1747225541649,5.507,181.58,181.54,5.5079]
[1747225542352,364.0,181.6,181.47,6.11971966]
[1747225542553,364.0,181.6,181.46,1.7385]
[1747225542844,5.5079,181.55,181.51,5.5088]
[1747225543154,6.11971966,181.58,181.46,1.7385]
[1747225543852,5.5076,181.56,181.52,5.5085]
[1747225544552,5.5076,181.56,181.53,5.5083]
[1747225545056,5.5073,181.57,181.53,5.5083]
[1747225545856,364.0,181.6,181.46,1.7385]
[1747225546052,364.0,181.6,181.47,6.11971966]
[1747225546357,5.5068,181.59,181.55,5.5076]
[1747225546656,5.5068,181.59,181.47,6.11971966]
[1747225547453,5.5068,181.59,181.55,5.5076]
[1747225547754,5.507,181.58,181.55,5.5076]
[1747225548157,5.507,181.58,181.54,5.5079]
[1747225548554,5.5073,181.57,181.53,5.5083]
[1747225548754,364.0,181.6,181.46,1.7385]
[1747225548956,6.11971966,181.58,181.46,1.7385]
[1747225549354,6.11971966,181.58,181.43,1.7807]
[1747225549558,6.11971966,181.55,181.43,1.7807]
[1747225549855,5.3266,181.54,181.48,5.5097]
[1747225550556,5.509,181.51,181.48,5.5097]
[1747225550754,5.509,181.51,181.41,53.31549116]
[1747225550755,5.3266,181.54,181.41,53.31549116]
[1747225551158,5.5089,181.52,181.49,5.5095]
[1747225551764,5.5092,181.51,181.48,5.5098]
[1747225552159,5.5092,181.51,181.41,53.31549116]
[1747225552160,5.5095,181.5,181.47,5.5099]
[1747225552564,5.3266,181.54,181.41,53.31549116]
[1747225553359,5.5094,181.5,181.41,53.31549116]
[1747225553862,5.5094,181.5,181.47,5.5101]
[1747225554161,5.5091,181.51,181.41,53.31549116]
[1747225554363,6.11971966,181.52,181.46,5.5103]
[1747225554559,5.5096,181.5,181.46,5.5103]
[1747225554862,6.11971966,181.52,181.46,5.5103]
[1747225555062,6.11971966,181.52,181.47,5.5102]
[1747225555259,5.5095,181.5,181.47,5.5102]
[1747225556964,5.5095,181.5,181.48,5.5099]
[1747225557463,5.5095,181.5,181.47,5.5101]
[1747225557763,5.5091,181.51,181.38,6.11971966]
[1747225558463,5.5091,181.51,181.47,5.51]
[1747225558663,5.5091,181.51,181.38,6.11971966]
[1747225558865,5.3266,181.54,181.39,11.025]
[1747225559564,5.5089,181.52,181.49,5.5096]
[1747225559767,5.3266,181.54,181.41,6.11971966]
[1747225559966,6.11971966,181.55,181.41,6.11971966]
[1747225560163,370.11971966,181.58,181.42,11.0235]
[1747225560365,370.11971966,181.58,181.41,6.11971966]
[1747225560666,5.508,181.55,181.51,5.5088]
[1747225561063,370.11971966,181.58,181.51,5.5088]
[1747225561461,370.11971966,181.58,181.52,5.5087]
[1747225561862,5.5079,181.55,181.52,5.5087]
[1747225562166,370.11971966,181.58,181.51,5.5089]
[1747225562361,5.5081,181.54,181.43,11.0229]
[1747225562559,5.5081,181.54,181.5,5.5091]
[1747225562766,6.11971966,181.55,181.41,6.11971966]
[1747225562966,5.5088,181.52,181.41,6.11971966]
[1747225563166,6.11971966,181.55,181.41,6.11971966]
[1747225563668,5.5085,181.53,181.41,6.11971966]
[1747225564568,5.5082,181.54,181.41,6.11971966]
[1747225564870,5.5082,181.54,181.5,5.5091]
[1747225565669,6.11971966,181.55,181.5,5.5091]
[1747225566570,5.5086,181.53,181.5,5.5091]
[1747225566769,6.11971966,181.55,181.51,5.509]
[1747225567370,6.11971966,181.52,181.32,11.029]
[1747225567567,6.15831314,181.42,181.27,5.379]
[1747225567870,5.5122,181.41,181.35,5.5137]
[1747225568267,6.15831314,181.42,181.35,5.5137]
[1747225568468,6.15831314,181.42,181.34,5.5141]
[1747225568668,9.75181314,181.42,181.32,58.44]
[1747225569073,5.5127,181.39,181.32,58.44]
[1747225569771,5.5127,181.39,181.35,5.5138]
[1747225569974,5.5127,181.39,181.32,58.44]
[1747225570168,6.15831314,181.39,181.28,58.44]
[1747225570575,1.9088,181.41,181.28,58.44]
[1747225572078,7.4211,181.41,181.37,5.5133]
[1747225572376,5.5123,181.41,181.37,5.5133]
[1747225572578,5.5123,181.41,181.36,5.5135]
[1747225573077,5.5123,181.41,181.37,5.5132]
[1747225573377,58.44,181.43,181.33,58.46]
[1747225573678,6.15831314,181.45,181.33,58.46]
[1747225574073,6.15831314,181.45,181.39,5.5124]
[1747225574480,63.8914,181.44,181.39,5.5124]
[1747225574979,5.5115,181.43,181.39,5.5124]
[1747225575480,58.38,181.44,181.38,5.5129]
[1747225575675,58.38,181.44,181.33,116.84]
[1747225576177,58.46,181.47,181.33,122.99831314]
[1747225576380,116.84,181.47,181.36,6.15831314]
[1747225576880,5.5105,181.46,181.42,5.5115]
[1747225577579,63.8903,181.47,181.43,5.5114]
[1747225578184,64.53831314,181.47,181.4,58.46]
[1747225578774,5.5111,181.45,181.4,63.9723]
[1747225579380,5.5111,181.45,181.41,5.5119]
[1747225579979,5.5111,181.45,181.42,5.5116]
[1747225582778,70.04881314,181.47,181.4,58.46]
[1747225583080,64.53831314,181.47,181.43,5.5113]
[1747225583278,64.53831314,181.47,181.4,58.46]
[1747225584585,5.5109,181.45,181.42,5.5116]
[1747225585985,5.5113,181.44,181.41,5.5118]
[1747225586177,6.15831314,181.44,181.34,5.4894]
[1747225586385,6.15831314,181.44,181.38,58.38]
[1747225586683,5.512,181.42,181.39,5.5125]
[1747225586984,63.892,181.42,181.39,5.5125]
[1747225588685,5.5121,181.41,181.38,63.8929]
[1747225589178,63.8919,181.42,181.39,5.5126]
[1747225591579,5.5121,181.41,181.38,5.5129]
[1747225591783,58.38,181.42,181.35,58.38]
[1747225592384,58.38,181.42,181.4,5.5121]
[1747225593784,63.8918,181.42,181.39,5.5126]
[1747225594177,58.38,181.42,181.39,5.5126]
[1747225594485,63.8919,181.42,181.4,5.5123]
[1747225595484,63.8919,181.42,181.39,5.5126]
[1747225595885,5.5121,181.41,181.35,58.38]
[1747225596086,58.38,181.42,181.39,5.5126]
[1747225596397,11.0148,181.57,181.4,58.38]
[1747225596687,66.39321314,181.52,181.45,5.5106]
[1747225596887,5.5098,181.49,181.45,5.5106]
[1747225597090,66.39321314,181.52,181.41,58.38]
[1747225597288,66.39321314,181.52,181.48,5.5097]
[1747225597488,66.39321314,181.52,181.41,58.38]
[1747225597489,422.38,181.5,181.41,58.38]
[1747225597993,60.2349,181.52,181.42,58.38]
[1747225598395,60.2349,181.52,181.51,5.509]
[1747225598696,58.38,181.52,181.51,5.509]
[1747225599494,58.38,181.52,181.5,5.5092]
[1747225600094,58.38,181.52,181.51,5.509]
[1747225600697,370.15831314,181.55,181.52,5.5084]
[1747225600698,58.38,181.54,181.52,5.5084]
[1747225600895,58.38,181.54,181.47,58.38]
[1747225601094,58.38,181.54,181.5,5.5091]
[1747225601393,58.38,181.54,181.47,58.38]
[1747225602100,63.8881,181.54,181.47,58.38]
[1747225603393,58.38,181.54,181.47,58.38]
[1747225604195,370.15831314,181.55,181.47,58.38]
[1747225604396,3.5489,181.57,181.47,58.38]
[1747225604595,6.15831314,181.55,181.44,3.5581]
[1747225604797,6.15831314,181.55,181.45,58.36]
[1747225605600,6.15831314,181.55,181.48,5.5097]
[1747225607594,6.15831314,181.55,181.45,58.36]
[1747225607899,6.15831314,181.52,181.45,58.36]
[1747225608197,58.34,181.51,181.45,58.36]
[1747225609100,58.34,181.51,181.47,5.51]
[1747225611998,58.34,181.51,181.46,5.5105]
[1747225612303,58.34,181.51,181.45,58.36]
[1747225612604,5.5094,181.5,181.45,63.8706]
[1747225613801,5.5099,181.49,181.45,58.36]
[1747225614001,58.34,181.51,181.44,58.32]
[1747225614305,5.5905,181.5,181.44,58.32]
[1747225614702,5.5098,181.49,181.45,5.5108]
[1747225614905,5.5905,181.5,181.44,58.32]
[1747225615506,5.5101,181.48,181.44,63.8309]
[1747225619608,1.9062,181.5,181.44,58.32]
[1747225619801,58.32,181.51,181.44,58.32]
[1747225620301,5.5095,181.5,181.46,5.5103]
[1747225621506,5.5096,181.49,181.45,5.5107]
[1747225621706,64.47831314,181.51,181.44,58.32]
[1747225622103,5.5098,181.49,181.44,63.8308]
[1747225622607,5.5098,181.49,181.45,5.5108]
[1747225623108,5.5094,181.5,181.44,58.32]
[1747225623303,5.5094,181.5,181.46,5.5103]
[1747225624205,58.32,181.51,181.44,58.32]
[1747225624408,370.15831314,181.54,181.44,58.32]
[1747225624600,58.32,181.53,181.44,58.32]
[1747225624805,63.8286,181.53,181.48,5.5097]
[1747225625407,58.32,181.53,181.44,58.32]
[1747225626308,63.8285,181.53,181.48,5.5097]
[1747225626611,58.32,181.53,181.44,58.32]
[1747225627912,58.32,181.53,181.39,482.55831314]
[1747225628116,5.5099,181.49,181.45,5.5108]
[1747225628313,58.32,181.53,181.45,58.32]
[1747225628513,6.15831314,181.51,181.45,58.32]
[1747225630613,5.5098,181.49,181.46,5.5105]
[1747225631614,5.5094,181.5,181.47,5.5102]
[1747225631913,58.32,181.53,181.47,5.5102]
[1747225632216,5.5092,181.51,181.47,5.5102]
[1747225632613,58.32,181.53,181.46,5.5104]
[1747225632805,5.5095,181.5,181.46,5.5104]
[1747225633011,58.32,181.53,181.45,58.32]
[1747225633615,5.5101,181.48,181.45,58.32]
[1747225634614,58.32,181.53,181.45,58.32]
[1747225635315,5.5095,181.5,181.46,5.5104]
[1747225635914,58.32,181.53,181.45,63.8307]
[1747225636514,5.5097,181.49,181.45,63.8307]
[1747225636814,58.32,181.53,181.45,58.32]
[1747225637115,5.5098,181.49,181.45,63.8308]
[1747225637416,58.32,181.53,181.45,63.8308]
[1747225637714,58.32,181.53,181.45,58.32]
[1747225637914,6.15831314,181.51,181.45,58.32]
[1747225638311,6.15831314,181.51,181.39,476.4]
[1747225638517,6.15831314,181.51,181.4,58.32]
[1747225638717,6.15831314,181.48,181.4,58.32]
[1747225638914,5.511,181.45,181.41,5.5119]
[1747225639319,5.5112,181.44,181.41,5.5119]
[1747225640121,5.511,181.45,181.41,5.5119]
[1747225640921,5.5106,181.46,181.42,5.5117]
[1747225641119,58.3,181.47,181.42,5.5117]
[1747225641817,58.3,181.47,181.4,58.32]
[1747225642320,5.511,181.45,181.41,5.512]
[1747225642521,58.3,181.47,181.4,58.32]
[1747225642819,5.5112,181.44,181.4,63.8322]
[1747225643220,5.5112,181.44,181.4,58.32]
[1747225644423,5.5112,181.44,181.4,63.8322]
[1747225644723,5.5114,181.43,181.4,63.8322]
[1747225644923,58.3,181.47,181.4,63.8322]
[1747225645424,5.5113,181.44,181.4,63.8322]
[1747225646224,5.5113,181.44,181.41,5.512]
[1747225646423,58.3,181.47,181.4,58.32]
[1747225646629,0.95948386,181.55,181.4,58.32]
[1747225646824,487.4131,181.6,181.4,58.32]